bitfinex-derivatives/quotes_BTCF0:USTF0_20210105
["timestamp","ask_amount","ask_price","bid_price","bid_amount"]
[1609859722715,0.53030466,32117.0,32116.0,0.13632608]
[1609859725114,0.53030466,32117.0,32116.0,3.64572608]
[1609859726318,0.67697018,32120.0,32116.0,3.64572608]
[1609859726715,0.14739,32120.0,32116.0,3.64572608]
[1609859727517,0.14739,32120.0,32117.0,0.094]
[1609859728124,0.5286395,32122.0,32117.0,0.094]
[1609859728318,0.52867977,32123.0,32117.0,0.094]
[1609859728719,0.52835676,32125.0,32117.0,0.094]
[1609859729319,0.52835676,32125.0,32124.0,0.13632608]
[1609859729820,0.52835676,32125.0,32124.0,0.85262608]
[1609859730924,0.52835676,32125.0,32124.0,0.13632608]
[1609859731325,0.52858527,32127.0,32124.0,0.13632608]
[1609859732528,0.52858527,32127.0,32118.0,3.5327]
[1609859732730,0.67469527,32127.0,32118.0,3.5327]
[1609859733430,0.67469527,32127.0,32126.0,0.13632608]
[1609859733631,0.50859527,32127.0,32126.0,4.41612608]
[1609859734232,0.14611,32127.0,32126.0,4.41612608]
[1609859734431,0.77386382,32136.0,32126.0,4.41612608]
[1609859734832,2.11023397,32162.0,32126.0,4.41612608]
[1609859734833,0.77512592,32148.0,32126.0,4.41612608]
[1609859735233,0.7753804,32150.0,32126.0,4.41612608]
[1609859735432,0.7753804,32150.0,32147.0,0.13632608]
[1609859737334,0.13632608,32148.0,32147.0,0.13632608]
[1609859737735,0.13632608,32148.0,32132.0,0.10174]
[1609859739338,0.10047,32151.0,32144.0,0.13632608]
[1609859741438,0.23679608,32151.0,32150.0,0.13632608]
[1609859743842,0.23679608,32151.0,32142.0,5.0296]
[1609859744043,0.23679608,32151.0,32132.0,0.10174]
[1609859744244,0.23679608,32151.0,32130.0,3.5848]
[1609859745345,0.23679608,32151.0,32150.0,0.13632608]
[1609859748450,0.10047,32151.0,32150.0,0.13632608]
[1609859748650,0.64238133,32157.0,32150.0,0.13632608]
[1609859748849,0.64238133,32157.0,32151.0,3.7629]
[1609859749451,0.13632608,32162.0,32156.0,0.13632608]
[1609859751352,0.13632608,32162.0,32161.0,0.13632608]
[1609859754455,0.64031433,32172.0,32161.0,0.13632608]
[1609859755456,0.64031433,32172.0,32168.0,0.13632608]
[1609859756860,5.43207602,32174.0,32168.0,0.13632608]
[1609859757059,0.64207602,32174.0,32168.0,0.13632608]
[1609859757459,0.13632608,32169.0,32168.0,0.13632608]
[1609859758659,4.53872608,32169.0,32154.0,0.13012]
[1609859758862,4.66633608,32169.0,32154.0,0.13012]
[1609859759261,4.66633608,32169.0,32151.0,3.8753]
[1609859759459,4.53001,32169.0,32151.0,3.8753]
[1609859761263,0.12761,32169.0,32137.0,0.0932]
[1609859761464,4.0852,32158.0,32153.0,0.13632608]
[1609859761664,4.0852,32158.0,32143.0,0.0937]
[1609859761863,4.17729,32158.0,32137.0,0.0932]
[1609859762063,4.17729,32158.0,32130.0,4.5918]
[1609859762263,0.09209,32158.0,32110.0,0.2738]
[1609859762665,4.0717,32144.0,32118.0,4.947]
[1609859763465,4.0717,32144.0,32129.0,0.13632608]
[1609859763764,4.0717,32144.0,32118.0,4.947]
[1609859763966,0.11429,32147.0,32113.0,0.13833]
[1609859764164,5.1694,32134.0,32113.0,0.13833]
[1609859764365,5.28405,32134.0,32113.0,0.13833]
[1609859765364,0.13632608,32114.0,32110.0,0.13632608]
[1609859765565,5.08192608,32114.0,32110.0,0.13632608]
[1609859765765,0.13632608,32114.0,32110.0,0.13632608]
[1609859765965,0.13632608,32114.0,32102.0,0.0927]
[1609859767565,0.12946,32121.0,32111.0,0.13632608]
[1609859769469,0.13632608,32112.0,32111.0,0.13632608]
[1609859774675,0.13632608,32112.0,32111.0,5.19462608]
[1609859775876,0.13042608,32112.0,32111.0,5.19462608]
[1609859776075,0.12946,32121.0,32111.0,5.19462608]
[1609859776476,0.82124561,32132.0,32111.0,5.19462608]
[1609859776877,0.2868,32132.0,32111.0,5.19462608]
[1609859777478,0.2868,32132.0,32125.0,0.13632608]
[1609859778077,0.11465,32134.0,32125.0,0.13632608]
[1609859778278,0.53334219,32139.0,32125.0,0.13632608]
[1609859778981,0.53245249,32142.0,32125.0,0.13632608]
[1609859779580,0.53245249,32142.0,32133.0,0.13632608]
[1609859779779,0.53360482,32141.0,32133.0,0.13632608]
[1609859779979,0.53360482,32141.0,32133.0,3.68832608]
[1609859781582,0.53360482,32141.0,32138.0,0.13632608]
[1609859781884,0.53360482,32141.0,32138.0,0.69842608]
[1609859782085,0.53058692,32144.0,32138.0,0.69842608]
[1609859782684,0.2978,32146.0,32138.0,0.69842608]
[1609859782883,0.11429,32147.0,32138.0,0.69842608]
[1609859783083,0.53348869,32148.0,32138.0,0.69842608]
[1609859783285,0.53348869,32148.0,32138.0,0.13632608]
[1609859783483,0.53348869,32148.0,32145.0,0.13632608]
[1609859784186,0.53367972,32150.0,32141.0,5.1002]
[1609859784691,0.5332385,32149.0,32141.0,5.1002]
[1609859784889,0.6822585,32149.0,32141.0,5.1002]
[1609859785488,0.6822585,32149.0,32145.0,0.13632608]
[1609859785889,0.14902,32149.0,32145.0,0.13632608]
[1609859787493,0.13632608,32147.0,32145.0,0.13632608]
[1609859796808,0.13632608,32147.0,32140.0,3.7173]
[1609859797015,0.13632608,32147.0,32134.0,0.10596]
[1609859797207,0.13632608,32147.0,32131.0,5.1649]
[1609859797608,0.13765,32150.0,32140.0,0.13632608]
[1609859797811,0.53741568,32152.0,32140.0,0.13632608]
[1609859798711,0.53608534,32146.0,32140.0,0.13632608]
[1609859799312,0.53590232,32145.0,32140.0,0.13632608]
[1609859799511,0.13632608,32141.0,32140.0,0.13632608]
[1609859799811,0.13632608,32141.0,32131.0,5.1649]
[1609859800213,0.13632608,32141.0,32127.0,0.12369]
[1609859800614,0.13632608,32141.0,32120.0,4.7633]
[1609859801214,0.27026608,32141.0,32120.0,4.7633]
[1609859801614,0.13394,32141.0,32122.0,0.13632608]
[1609859802516,0.53970002,32134.0,32122.0,0.13632608]
[1609859802715,0.65823002,32134.0,32122.0,0.13632608]
[1609859803415,0.5396493,32133.0,32122.0,0.13632608]
[1609859803616,0.13632608,32123.0,32122.0,0.13632608]
[1609859804418,0.13632608,32123.0,32112.0,4.0229]
[1609859805625,0.13632608,32116.0,32115.0,0.13632608]
[1609859810327,0.13632608,32116.0,32097.0,0.0942]
[1609859810527,0.13632608,32116.0,32099.0,4.7263]
[1609859811729,3.8326,32118.0,32110.0,0.13632608]
[1609859811930,3.8326,32118.0,32101.0,0.09118]
[1609859812329,3.97995,32118.0,32101.0,0.09118]
[1609859812930,3.97995,32118.0,32099.0,4.7263]
[1609859813731,0.13632608,32100.0,32099.0,4.86262608]
[1609859813931,0.13632608,32100.0,32086.0,2.26210408]
[1609859814132,5.2264,32098.0,32078.0,2.26133581]
[1609859815333,0.23254608,32100.0,32078.0,2.26133581]
[1609859815534,0.13632608,32100.0,32080.0,3.9249]
[1609859815734,0.13632608,32100.0,32099.0,0.13632608]
[1609859816535,4.82132608,32100.0,32099.0,0.13632608]
[1609859817235,0.13632608,32100.0,32099.0,0.13632608]
[1609859818235,0.2894,32113.0,32099.0,0.13632608]
[1609859818437,0.82371601,32123.0,32099.0,0.13632608]
[1609859819035,0.55091601,32123.0,32099.0,0.13632608]
[1609859819239,0.13935,32125.0,32099.0,0.13632608]
[1609859819635,0.13935,32125.0,32121.0,0.13632608]
[1609859819836,0.55037184,32128.0,32121.0,0.13632608]
[1609859820036,0.01796993,32129.0,32121.0,0.13632608]
[1609859821238,0.01796993,32129.0,32114.0,0.10971]
[1609859821437,0.11146913,32132.0,32114.0,0.10971]
[1609859821637,0.13632608,32115.0,32114.0,0.13632608]
[1609859822438,0.13632608,32115.0,32106.0,0.10571]
[1609859823338,0.13632608,32115.0,32096.0,4.8784]
[1609859823740,4.4969,32117.0,32105.0,0.13632608]
[1609859824640,4.4969,32117.0,32096.0,4.8784]
[1609859825740,4.4969,32117.0,32101.0,0.13632608]
[1609859827644,0.13632608,32102.0,32101.0,0.13632608]
[1609859828444,0.13632608,32102.0,32078.0,0.12488]
[1609859828645,4.5313,32099.0,32078.0,0.12488]
[1609859829045,4.5313,32099.0,32077.0,4.2616]
[1609859829647,0.13632608,32090.0,32088.0,0.13632608]
[1609859831452,4.5313,32099.0,32088.0,0.13632608]
[1609859831652,0.13298,32108.0,32097.0,0.13632608]
[1609859832251,0.13298,32108.0,32089.0,0.12538]
[1609859833753,0.13298,32108.0,32092.0,0.13632608]
[1609859833955,4.06,32115.0,32092.0,0.13632608]
[1609859835753,0.13632608,32093.0,32092.0,0.13632608]
[1609859835953,4.06,32115.0,32092.0,0.13632608]
[1609859837755,4.06,32115.0,32101.0,0.13632608]
[1609859838355,0.1021,32115.0,32101.0,0.13632608]
[1609859838755,0.01794657,32118.0,32101.0,0.13632608]
[1609859839756,0.01794657,32118.0,32105.0,0.13632608]
[1609859840857,0.2753,32119.0,32105.0,0.13632608]
[1609859841858,0.13632608,32109.0,32105.0,0.13632608]
[1609859844860,0.2753,32119.0,32105.0,0.13632608]
[1609859845460,5.1042,32125.0,32105.0,0.13632608]
[1609859845862,5.1042,32125.0,32122.0,0.13632608]
[1609859846060,0.01802897,32128.0,32122.0,0.13632608]
[1609859846863,0.01802897,32128.0,32122.0,0.23180608]
[1609859847064,0.01807886,32137.0,32122.0,4.32450608]
[1609859847864,0.01807886,32137.0,32134.0,0.13632608]
[1609859848065,0.55771908,32143.0,32134.0,0.13632608]
[1609859848968,0.01818327,32147.0,32134.0,0.13632608]
[1609859849566,0.55907232,32149.0,32134.0,0.13632608]
[1609859849767,0.55907232,32149.0,32139.0,0.13632608]
[1609859850266,0.01820115,32147.0,32139.0,0.13632608]
[1609859850968,0.11876,32149.0,32139.0,0.13632608]
[1609859851767,0.13632608,32140.0,32139.0,0.13632608]
[1609859854370,0.01821731,32148.0,32139.0,0.13632608]
[1609859854570,0.66004873,32149.0,32139.0,0.13632608]
[1609859854571,0.11876,32149.0,32139.0,0.13632608]
[1609859855574,0.0182883,32150.0,32139.0,0.13632608]
[1609859855974,0.13632608,32140.0,32139.0,0.13632608]
[1609859858878,0.0183091,32148.0,32139.0,0.13632608]
[1609859859881,0.13632608,32140.0,32139.0,0.13632608]
[1609859864487,0.01833428,32149.0,32139.0,0.13632608]
[1609859865189,0.2877,32152.0,32139.0,0.13632608]
[1609859865889,0.13632608,32140.0,32139.0,0.13632608]
[1609859868989,0.13632608,32140.0,32129.0,0.11125]
[1609859869189,0.87032608,32140.0,32126.0,5.1396]
[1609859869390,0.13632608,32140.0,32122.0,0.09548]
[1609859869590,0.13632608,32140.0,32113.0,0.12921]
[1609859869790,0.13632608,32140.0,32121.0,4.4042]
[1609859869990,0.13632608,32143.0,32139.0,0.13632608]
[1609859871792,0.6529123,32158.0,32139.0,0.13632608]
[1609859871993,0.13632608,32152.0,32151.0,0.13632608]
[1609859872393,0.13632608,32152.0,32133.0,0.10487]
[1609859873192,0.7243,32150.0,32133.0,0.10487]
[1609859873392,0.13632608,32152.0,32133.0,0.10487]
[1609859873692,4.1931,32142.0,32133.0,0.10487]
[1609859873894,4.1931,32142.0,32141.0,0.13632608]
[1609859874292,0.14855,32148.0,32141.0,0.13632608]
[1609859874493,4.0409,32147.0,32141.0,0.13632608]
[1609859874692,4.0409,32147.0,32133.0,0.10487]
[1609859875493,4.0409,32147.0,32126.0,4.8239]
[1609859875897,0.13632608,32130.0,32129.0,0.13632608]
[1609859881103,5.31002608,32130.0,32129.0,0.13632608]
[1609859881302,5.31002608,32130.0,32121.0,0.10662]
[1609859881504,0.13632608,32130.0,32098.0,2.25580462]
[1609859881704,3.651,32125.0,32098.0,6.79420462]
[1609859882707,3.77409,32125.0,32098.0,4.5384]
[1609859884111,3.77409,32125.0,32111.0,0.13632608]
[1609859884309,3.77409,32125.0,32098.0,4.5384]
[1609859886009,3.77409,32125.0,32111.0,0.13632608]
[1609859886910,0.12309,32125.0,32111.0,0.13632608]
[1609859887112,0.09247,32133.0,32111.0,0.13632608]
[1609859887312,0.01833421,32136.0,32111.0,0.13632608]
[1609859887910,3.5912,32118.0,32111.0,0.13632608]
[1609859888110,3.5912,32118.0,32117.0,0.13632608]
[1609859888910,3.5912,32118.0,32106.0,0.09079]
[1609859890110,3.5912,32118.0,32109.0,0.13632608]
[1609859892113,0.13632608,32110.0,32109.0,0.13632608]
[1609859892312,0.67722608,32110.0,32109.0,0.13632608]
[1609859893617,0.13632608,32110.0,32109.0,0.13632608]
[1609859894816,0.10188,32119.0,32109.0,0.13632608]
[1609859895017,4.2447,32125.0,32109.0,0.13632608]
[1609859896117,4.2447,32125.0,32116.0,0.13632608]
[1609859897120,0.14388,32126.0,32116.0,0.13632608]
[1609859897319,0.0183843,32131.0,32116.0,0.13632608]
[1609859897717,0.0183843,32131.0,32116.0,0.86312608]
[1609859897919,0.0183843,32131.0,32116.0,0.22846608]
[1609859898120,0.0183843,32131.0,32130.0,0.13632608]
[1609859899320,0.01853682,32148.0,32130.0,0.13632608]
[1609859900121,0.01853682,32148.0,32144.0,0.13632608]
[1609859901226,0.56926662,32148.0,32144.0,0.13632608]
[1609859902025,0.13632608,32145.0,32144.0,0.13632608]
[1609859903526,0.13632608,32145.0,32132.0,0.14833]
[1609859904025,0.01854823,32150.0,32137.0,0.13632608]
[1609859904225,0.57007264,32149.0,32137.0,0.13632608]
[1609859904830,0.01856136,32149.0,32137.0,0.13632608]
[1609859905427,0.56383781,32150.0,32137.0,0.13632608]
[1609859906027,0.56383781,32150.0,32145.0,0.13632608]
[1609859906229,0.12797699,32151.0,32145.0,0.13632608]
[1609859907828,0.56387614,32150.0,32145.0,0.13632608]
[1609859908129,0.13632608,32146.0,32145.0,0.13632608]
[1609859908330,0.13632608,32146.0,32132.0,0.14833]
[1609859908730,0.13632608,32146.0,32125.0,0.14579]
[1609859908931,0.13632608,32146.0,32123.0,4.0974]
[1609859910133,0.01834308,32149.0,32140.0,0.13632608]
[1609859911235,0.67067977,32151.0,32140.0,0.13632608]
[1609859912133,0.67067977,32151.0,32145.0,0.13632608]
[1609859913935,0.12787823,32151.0,32145.0,0.13632608]
[1609859914135,0.13632608,32146.0,32145.0,0.13632608]
[1609859916542,3.63702608,32146.0,32137.0,0.12531]
[1609859917541,0.13632608,32146.0,32137.0,0.12531]
[1609859917741,0.13632608,32146.0,32137.0,4.49211]
[1609859918243,0.13632608,32146.0,32145.0,0.13632608]
[1609859922146,0.13632608,32150.0,32145.0,0.13632608]
[1609859926247,0.01828633,32156.0,32145.0,0.13632608]
[1609859926248,0.13632608,32146.0,32145.0,0.13632608]
[1609859946069,0.13632608,32146.0,32137.0,0.12531]
[1609859946269,4.0698,32147.0,32140.0,0.13632608]
[1609859946870,4.0698,32147.0,32135.0,0.10268]
[1609859947572,4.0698,32147.0,32128.0,0.12736]
[1609859947772,4.0698,32147.0,32127.0,4.9356]
[1609859948273,4.0698,32147.0,32130.0,0.13632608]
[1609859949174,0.54203624,32145.0,32130.0,0.13632608]
[1609859950274,0.13632608,32131.0,32130.0,0.13632608]
[1609859955178,0.11658,32141.0,32130.0,0.13632608]
[1609859955979,0.54635835,32145.0,32130.0,0.13632608]
[1609859956280,0.54774668,32146.0,32141.0,0.13632608]
[1609859957280,0.54766254,32145.0,32141.0,0.13632608]
[1609859957983,0.54924655,32144.0,32141.0,0.13632608]
[1609859958280,0.13632608,32142.0,32141.0,0.13632608]
[1609859959183,0.54953612,32146.0,32141.0,0.75092608]
[1609859959386,0.54953612,32146.0,32141.0,0.13632608]
[1609859959584,0.54953612,32146.0,32143.0,4.2072]
[1609859960385,0.54953612,32146.0,32145.0,0.13632608]
[1609859961890,0.13632608,32153.0,32145.0,0.13632608]
[1609859962486,0.13632608,32153.0,32141.0,0.13117]
[1609859962487,0.13632608,32153.0,32152.0,0.13632608]
[1609859965893,0.13632608,32153.0,32141.0,0.13117]
[1609859966092,0.0922,32152.0,32141.0,0.13117]
[1609859966293,0.0922,32152.0,32134.0,3.6496]
[1609859966493,0.0922,32152.0,32143.0,0.13632608]
[1609859966695,4.8166,32154.0,32143.0,0.13632608]
[1609859967096,0.55082586,32155.0,32143.0,0.13632608]
[1609859967797,0.54895285,32152.0,32143.0,0.13632608]
[1609859968397,0.68527893,32152.0,32151.0,0.13632608]
[1609859969100,0.13632608,32152.0,32151.0,0.13632608]
[1609859986227,0.55007103,32157.0,32151.0,0.13632608]
[1609859986427,0.55007103,32157.0,32156.0,0.13632608]
[1609859988433,0.68639711,32157.0,32156.0,0.13632608]
[1609859990736,0.13632608,32157.0,32156.0,0.13632608]
[1609859992537,0.84972608,32157.0,32156.0,0.13632608]
[1609859993337,0.13632608,32157.0,32156.0,0.13632608]
[1609859993540,0.68839993,32157.0,32156.0,0.13632608]
[1609859994238,1.35056317,32157.0,32156.0,0.13632608]
[1609859995038,0.68839993,32157.0,32156.0,0.13632608]
[1609859995739,0.13632608,32157.0,32156.0,0.13632608]
[1609859997240,0.6884742,32157.0,32156.0,0.13632608]
[1609859997839,0.55214812,32157.0,32156.0,0.13632608]
[1609860001543,0.55111244,32160.0,32156.0,0.13632608]
[1609860002442,0.13632608,32166.0,32156.0,0.13632608]
[1609860002642,0.13632608,32166.0,32163.0,0.13632608]
[1609860012157,0.55390481,32170.0,32163.0,0.13632608]
[1609860012559,0.55390481,32170.0,32169.0,0.13632608]
[1609860013159,0.55390481,32170.0,32169.0,0.25745608]
[1609860013359,0.39220481,32170.0,32169.0,0.25745608]
[1609860013760,0.66477747,32172.0,32169.0,0.35025608]
[1609860014161,0.53717747,32172.0,32169.0,0.35025608]
[1609860014368,0.85503025,32178.0,32169.0,0.35025608]
[1609860014563,0.57599777,32181.0,32180.0,4.2108]
[1609860014761,0.56679777,32181.0,32180.0,4.32327]
[1609860014959,0.54109777,32181.0,32180.0,4.32327]
[1609860015162,1.0659218,32212.0,32180.0,4.32327]
[1609860015360,1.53191837,32212.0,32180.0,4.32327]
[1609860015761,0.46599657,32212.0,32180.0,4.41597]
[1609860016361,0.68503397,32214.0,32180.0,0.20517]
[1609860016561,0.68503397,32214.0,32200.0,4.69]
[1609860016761,0.68503397,32214.0,32213.0,0.13632608]
[1609860017164,1.04296412,32223.0,32219.0,4.4087]
[1609860017764,0.68485535,32225.0,32219.0,4.4087]
[1609860018363,0.68485535,32225.0,32217.0,0.15027]
[1609860018763,1.30607689,32233.0,32227.0,4.2459]
[1609860018764,0.17116761,32230.0,32227.0,4.2459]
[1609860019364,1.64295544,32241.0,32227.0,4.2459]
[1609860019365,0.49233395,32242.0,32227.0,4.2459]
[1609860019768,1.05043245,32249.0,32227.0,4.2459]
[1609860020163,1.05043245,32249.0,32228.0,0.0933]
[1609860020763,0.13632608,32247.0,32246.0,0.13632608]
[1609860021164,0.12468,32251.0,32246.0,0.13632608]
[1609860021566,0.12468,32251.0,32249.0,4.5763]
[1609860022565,0.12468,32251.0,32250.0,0.13632608]
[1609860025969,0.0935,32267.0,32260.0,4.7346]
[1609860026369,0.0929,32272.0,32260.0,4.7346]
[1609860026570,0.2976,32274.0,32260.0,4.7346]
[1609860026769,0.13632608,32269.0,32268.0,0.13632608]
[1609860026970,0.24948608,32269.0,32268.0,4.54642608]
[1609860027970,0.24948608,32269.0,32268.0,0.13632608]
[1609860028670,0.11316,32269.0,32268.0,0.13632608]
[1609860030675,0.24948608,32269.0,32268.0,0.13632608]
[1609860035779,0.11316,32269.0,32262.0,4.3788]
[1609860036181,0.09283,32269.0,32250.0,0.09573]
[1609860036780,0.09283,32269.0,32259.0,0.13632608]
[1609860038685,0.09283,32269.0,32265.0,0.13632608]
[1609860040788,0.13632608,32266.0,32265.0,0.13632608]
[1609860041489,0.09283,32269.0,32265.0,0.13632608]
[1609860041689,0.1771,32298.0,32265.0,0.13632608]
[1609860042089,0.4482,32298.0,32270.0,4.0433]
[1609860042690,0.13632608,32289.0,32283.0,0.13632608]
[1609860042890,0.25124608,32289.0,32284.0,0.695]
[1609860043490,0.11492,32289.0,32284.0,0.695]
[1609860044691,0.11492,32289.0,32288.0,0.13632608]
[1609860045092,0.13632608,32303.0,32288.0,5.32182608]
[1609860046293,0.13632608,32303.0,32288.0,5.41342608]
[1609860046694,0.97,32300.0,32299.0,0.13632608]
[1609860048497,0.97,32300.0,32299.0,0.74812608]
[1609860054701,0.9491,32300.0,32299.0,0.74812608]
[1609860056404,0.9491,32300.0,32299.0,0.13632608]
[1609860058104,0.875,32300.0,32299.0,0.13632608]
[1609860058305,0.7978,32300.0,32299.0,0.13632608]
[1609860058504,0.6651,32300.0,32299.0,0.13632608]
[1609860058710,0.6651,32300.0,32299.0,0.22972608]
[1609860058905,0.5722,32300.0,32299.0,0.22972608]
[1609860059107,0.2917,32300.0,32299.0,0.22972608]
[1609860059306,0.2699,32300.0,32299.0,0.22972608]
[1609860059908,0.2699,32300.0,32299.0,0.13632608]
[1609860061708,0.24,32300.0,32299.0,0.13632608]
[1609860062110,0.24,32300.0,32293.0,0.12899]
[1609860062511,0.24,32300.0,32278.0,0.12983]
[1609860062711,0.13632608,32286.0,32273.0,0.13632608]
[1609860063213,0.27120608,32286.0,32273.0,0.13632608]
[1609860063612,0.27120608,32286.0,32251.0,0.0941]
[1609860064412,4.5331,32277.0,32247.0,0.0938]
[1609860064613,4.64651,32277.0,32247.0,0.0938]
[1609860064813,4.64651,32277.0,32248.0,0.13632608]
[1609860065014,4.64651,32277.0,32248.0,0.23692608]
[1609860065717,0.11341,32277.0,32248.0,0.23692608]
[1609860066918,0.13632608,32271.0,32264.0,0.13632608]
[1609860067916,0.13632608,32271.0,32249.0,0.0926]
[1609860068118,0.13632608,32271.0,32248.0,0.1006]
[1609860068719,0.5373,32270.0,32248.0,0.1006]
[1609860068922,0.22512,32270.0,32248.0,0.1006]
[1609860069120,3.5587,32264.0,32248.0,0.1006]
[1609860069720,0.13162,32270.0,32248.0,0.1006]
[1609860070121,0.13162,32270.0,32236.0,5.0298]
[1609860070321,0.13162,32270.0,32236.0,4.9362]
[1609860070921,0.13162,32270.0,32258.0,0.13632608]
[1609860072722,0.13162,32270.0,32240.0,0.14914]
[1609860072923,0.13632608,32253.0,32251.0,0.13632608]
[1609860073127,0.13632608,32253.0,32240.0,0.14914]
[1609860073525,0.13632608,32253.0,32227.0,4.9921]
[1609860074130,0.13632608,32253.0,32214.0,2.20769387]
[1609860074928,0.13632608,32244.0,32214.0,2.20769387]
[1609860075131,0.26490608,32244.0,32206.0,2.23236525]
[1609860076131,0.26490608,32244.0,32204.0,7.29687733]
[1609860076930,0.13632608,32227.0,32225.0,0.13632608]
[1609860078732,0.13632608,32227.0,32204.0,7.29687733]
[1609860078933,0.13632608,32221.0,32217.0,0.13632608]
[1609860082034,0.13632608,32221.0,32204.0,2.22897733]
[1609860082435,4.1859,32215.0,32197.0,2.23169752]
[1609860082835,4.29407,32215.0,32205.0,0.13632608]
[1609860083236,4.29407,32215.0,32187.0,2.78962191]
[1609860083237,4.29407,32215.0,32186.0,0.14841]
[1609860083437,0.10817,32215.0,32186.0,0.14841]
[1609860084838,0.13632608,32202.0,32198.0,0.13632608]
[1609860085038,0.12435,32204.0,32198.0,0.13632608]
[1609860086140,0.10817,32215.0,32198.0,0.13632608]
[1609860086341,0.10817,32215.0,32199.0,0.0918]
[1609860086942,0.10817,32215.0,32214.0,0.13632608]
[1609860087540,4.9262,32248.0,32214.0,0.13632608]
[1609860088944,4.9262,32248.0,32238.0,0.13632608]
[1609860089144,0.2922,32251.0,32238.0,0.13632608]
[1609860089344,4.3726,32245.0,32238.0,0.13632608]
[1609860089547,4.46638,32245.0,32238.0,0.13632608]
[1609860090945,0.09378,32245.0,32238.0,0.13632608]
[1609860091345,0.13632608,32249.0,32238.0,0.13632608]
[1609860092848,0.2922,32251.0,32245.0,0.13632608]
[1609860093449,0.2922,32251.0,32229.0,0.10908]
[1609860094148,0.2922,32251.0,32218.0,4.2607]
[1609860094348,0.2922,32251.0,32202.0,0.12202]
[1609860094549,0.2922,32251.0,32199.0,2.30959523]
[1609860094550,3.67028,32246.0,32200.0,2.21939701]
[1609860095351,3.67028,32246.0,32197.0,0.0943]
[1609860095750,3.67028,32246.0,32194.0,7.40734631]
[1609860096151,3.67028,32246.0,32194.0,7.31304631]
[1609860096850,3.67028,32246.0,32224.0,0.13632608]
[1609860097653,3.67028,32246.0,32221.0,0.12015]
[1609860098855,0.13632608,32235.0,32225.0,0.13632608]
[1609860099055,0.11018,32246.0,32225.0,0.13632608]
[1609860099554,0.2922,32251.0,32225.0,0.13632608]
[1609860100856,0.2922,32251.0,32236.0,0.13632608]
[1609860102864,0.13632608,32237.0,32236.0,0.13632608]
[1609860104363,0.13632608,32237.0,32221.0,0.12015]
[1609860104864,0.09067,32241.0,32224.0,0.13632608]
[1609860105563,0.09067,32241.0,32219.0,0.12134]
[1609860106865,0.13632608,32220.0,32219.0,0.25766608]
[1609860107665,0.13632608,32220.0,32219.0,0.12134]
[1609860108367,0.09067,32241.0,32219.0,0.12134]
[1609860108773,5.0159,32233.0,32219.0,0.12134]
[1609860108967,0.13632608,32220.0,32219.0,0.12134]
[1609860110369,0.13632608,32220.0,32193.0,4.85109]
[1609860110370,0.86192608,32220.0,32193.0,4.85109]
[1609860110570,0.28297608,32220.0,32193.0,0.10289]
[1609860110772,4.2319,32214.0,32179.0,2.20204049]
[1609860110969,0.13632608,32193.0,32190.0,0.13632608]
[1609860112573,0.13457,32199.0,32190.0,0.13632608]
[1609860112972,0.13457,32199.0,32198.0,0.13632608]
[1609860113172,0.13457,32199.0,32185.0,4.7672]
[1609860113374,0.13457,32199.0,32182.0,0.14471]
[1609860114978,0.13457,32199.0,32198.0,0.13632608]
[1609860115575,0.12547,32199.0,32198.0,0.13632608]
[1609860115776,0.13632608,32200.0,32198.0,0.13632608]
[1609860116877,0.13632608,32204.0,32198.0,0.13632608]
[1609860117076,0.1176,32206.0,32198.0,0.13632608]
[1609860117276,3.5038,32209.0,32198.0,0.13632608]
[1609860118979,0.13632608,32199.0,32198.0,0.13632608]
[1609860119779,0.14143,32205.0,32198.0,0.13632608]
[1609860121081,0.14143,32205.0,32185.0,4.112]
[1609860122985,0.14143,32205.0,32204.0,0.13632608]
[1609860123185,0.14143,32205.0,32167.0,2.22033147]
[1609860123385,0.14143,32205.0,32169.0,4.518]
[1609860124188,4.0721,32211.0,32169.0,4.518]
[1609860124388,4.0721,32211.0,32171.0,0.2236]
[1609860125087,4.0721,32211.0,32189.0,0.13632608]
[1609860125287,0.01896174,32212.0,32189.0,0.13632608]
[1609860125989,0.5823679,32213.0,32189.0,0.13632608]
[1609860126392,0.5823679,32213.0,32184.0,0.13256]
[1609860126589,4.7262679,32213.0,32184.0,0.13256]
[1609860126790,4.8482979,32213.0,32184.0,0.13256]
[1609860126989,0.13632608,32192.0,32186.0,0.13632608]
[1609860128091,0.13292,32202.0,32186.0,0.13632608]
[1609860128994,0.13632608,32187.0,32186.0,0.13632608]
[1609860129192,0.13632608,32187.0,32184.0,0.13256]
[1609860130696,0.13632608,32187.0,32171.0,0.2236]
[1609860131098,0.13632608,32187.0,32186.0,0.13632608]
[1609860131997,0.2772,32201.0,32186.0,0.13632608]
[1609860132197,0.13292,32202.0,32186.0,0.13632608]
[1609860132597,0.01351666,32207.0,32186.0,0.13632608]
[1609860132998,0.01351666,32207.0,32206.0,0.13632608]
[1609860134500,0.01351666,32207.0,32194.0,0.1061]
[1609860134999,0.01351666,32207.0,32206.0,0.13632608]
[1609860137102,0.12203,32213.0,32206.0,0.13632608]
[1609860137501,0.01352127,32216.0,32206.0,0.13632608]
[1609860139004,0.01352127,32216.0,32212.0,0.13632608]
[1609860139404,0.00394356,32217.0,32212.0,0.13632608]
[1609860139806,0.01352194,32218.0,32212.0,0.13632608]
[1609860140605,0.02854679,32219.0,32212.0,0.13632608]
[1609860141006,0.02854679,32219.0,32218.0,0.13632608]
[1609860142308,0.71036951,32220.0,32218.0,0.13632608]
[1609860142309,0.14665,32220.0,32218.0,0.13632608]
[1609860142809,0.00957514,32221.0,32218.0,0.13632608]
[1609860143008,0.13632608,32220.0,32218.0,0.13632608]
[1609860143210,0.26132608,32220.0,32218.0,0.13632608]
[1609860143611,0.26132608,32220.0,32194.0,0.1061]
[1609860144013,3.4886,32216.0,32176.0,3.6871]
[1609860145011,0.13632608,32212.0,32210.0,0.13632608]
[1609860145412,0.23713608,32212.0,32210.0,0.13632608]
[1609860145611,0.23713608,32212.0,32187.0,5.1821]
[1609860146112,0.0929,32211.0,32187.0,5.1821]
[1609860146815,0.8005,32211.0,32187.0,5.1821]
[1609860147213,0.13632608,32207.0,32197.0,0.13632608]
[1609860148416,0.0932,32206.0,32197.0,0.13632608]
[1609860149614,0.093,32205.0,32197.0,0.13632608]
[1609860150015,0.12308,32205.0,32197.0,0.13632608]
[1609860151218,0.12308,32205.0,32204.0,0.13632608]
[1609860154320,0.00958734,32219.0,32204.0,0.22694608]
[1609860155123,0.00958734,32219.0,32218.0,0.13632608]
[1609860156621,0.00958734,32219.0,32218.0,0.24258608]